Workbook

Sheet Principal
A2: MENU PRINCIPAL

Sheet Tabla Filtro Macro I
K1: Menú Principal
B2: RUT | C2: NOMBRE | D2: CARGO | E2: CENTRO COSTO | F2: RENTA | G2: DESCUENTOS | H2: LIQUIDO
B3: 04.308.131-4 | C3: Calderón Galaz Jose | D3: SECRETARIA | E3: FINANZAS | F3: 582400 | G3: =F3*21% -> 122304 | H3: =F3-G3 -> 460096
B4: 05.334.664-2 | C4: Catalán Toro Armanda | D4: ADMINISTRATIVO | E4: RR.HH | F4: 458000 | G4: 96180 | H4: 361820
B5: 06.565.470-9 | C5: Bacián Lavín Carlos | D5: ADMINISTRATIVO | E5: VENTAS | F5: 641000 | G5: 134610 | H5: 506390
B6: 06.843.720-2 | C6: Alvarez Torres Erick | D6: ADMINISTRATIVO | E6: VENTAS | F6: 574000 | G6: 120540 | H6: 453460
B7: 06.633.613-1 | C7: Castro Vásquez Bernardo | D7: GERENTE | E7: VENTAS | F7: 900000 | G7: 189000 | H7: 711000
B8: 05.057.894-1 | C8: Chávez González Elsa | D8: SECRETARIA | E8: VENTAS | F8: 566000 | G8: 118860 | H8: 447140
B9: 06.434.788-8 | C9: Belmar Hormazábal Rodrigo | D9: SECRETARIA | E9: VENTAS | F9: 528000 | G9: 110880 | H9: 417120
B10: 03.903.946-K | C10: Castro Córdova Silvia | D10: VENDEDOR | E10: VENTAS | F10: 457000 | G10: 95970 | H10: 361030
B11: 05.299.873-5 | C11: Aranguiz Figueroa Emilio | D11: VENDEDOR | E11: VENTAS | F11: 550000 | G11: 115500 | H11: 434500
B12: 06.633.876-2 | C12: Astudillo Pereira Verónica | D12: VENDEDOR | E12: VENTAS | F12: 557000 | G12: 116970 | H12: 440030
D14: CARGO
D15: VENDEDOR
B17: RUT | C17: NOMBRE | D17: CARGO | E17: CENTRO COSTO | F17: RENTA | G17: DESCUENTOS | H17: LIQUIDO
B18: 03.903.946-K | C18: Castro Córdova Silvia | D18: VENDEDOR | E18: VENTAS | F18: 457000 | G18: 95970 | H18: 361030
B19: 05.299.873-5 | C19: Aranguiz Figueroa Emilio | D19: VENDEDOR | E19: VENTAS | F19: 550000 | G19: 115500 | H19: 434500
B20: 06.633.876-2 | C20: Astudillo Pereira Verónica | D20: VENDEDOR | E20: VENTAS | F20: 557000 | G20: 116970 | H20: 440030

Sheet S - Total Macro II
B3: RUT | C3: NOMBRE | D3: CARGO | E3: CENTRO COSTO | F3: RENTA | G3: DESCUENTOS | H3: LIQUIDO
B4: 05.334.664-2 | C4: Catalán Toro Armanda | D4: ADMINISTRATIVO | E4: RR.HH | F4: 458000 | G4: =F4*21% -> 96180 | H4: =F4-G4 -> 361820
B5: 06.565.470-9 | C5: Bacián Lavín Carlos | D5: ADMINISTRATIVO | E5: VENTAS | F5: 641000 | G5: =F5*21% -> 134610 | H5: =F5-G5 -> 506390
B6: 06.843.720-2 | C6: Alvarez Torres Erick | D6: ADMINISTRATIVO | E6: VENTAS | F6: 574000 | G6: =F6*21% -> 120540 | H6: =F6-G6 -> 453460
B7: 06.633.613-1 | C7: Castro Vásquez Bernardo | D7: GERENTE | E7: VENTAS | F7: 900000 | G7: =F7*21% -> 189000 | H7: =F7-G7 -> 711000
B8: 04.308.131-4 | C8: Calderón Galaz Jose | D8: SECRETARIA | E8: FINANZAS | F8: 582400 | G8: =F8*21% -> 122304 | H8: =F8-G8 -> 460096
B9: 05.057.894-1 | C9: Chávez González Elsa | D9: SECRETARIA | E9: VENTAS | F9: 566000 | G9: =F9*21% -> 118860 | H9: =F9-G9 -> 447140
B10: 06.434.788-8 | C10: Belmar Hormazábal Rodrigo | D10: SECRETARIA | E10: VENTAS | F10: 528000 | G10: =F10*21% -> 110880 | H10: =F10-G10 -> 417120
B11: 03.903.946-K | C11: Castro Córdova Silvia | D11: VENDEDOR | E11: VENTAS | F11: 457000 | G11: =F11*21% -> 95970 | H11: =F11-G11 -> 361030
B12: 05.299.873-5 | C12: Aranguiz Figueroa Emilio | D12: VENDEDOR | E12: VENTAS | F12: 550000 | G12: =F12*21% -> 115500 | H12: =F12-G12 -> 434500
B13: 06.633.876-2 | C13: Astudillo Pereira Verónica | D13: VENDEDOR | E13: VENTAS | F13: 557000 | G13: =F13*21% -> 116970 | H13: =F13-G13 -> 440030

Sheet Texto Columna
H1: 1.- Concatenar | J1: 2.- & | L1: RUT | M1: DV | N1: RUT FINAL
B2: NOMBRE | D2: PATERNO | E2: MATERNO | F2: NOMBRE | H2: NOMBRE | J2: NOMBRE | L2: 111111111 | M2: K | N2: =L2 & "- " &M2 -> 111111111- K
B3: Calderón Galaz Jose | D3: Calderón | E3: Galaz | F3: Jose | H3: =_xlfn.CONCAT(F3," ",D3," ",E3) -> Jose Calderón Galaz | J3: =F3 & " " &D3 & " " & E3 -> Jose Calderón Galaz
B4: Catalán Toro Armanda | D4: Catalán | E4: Toro | F4: Armanda | H4: =_xlfn.CONCAT(F4," ",D4," ",E4) -> Armanda Catalán Toro | J4: =F4 & " " &D4 & " " & E4 -> Armanda Catalán Toro
B5: Bacián Lavín Carlos | D5: Bacián | E5: Lavín | F5: Carlos | H5: Carlos Bacián Lavín | J5: Carlos Bacián Lavín
B6: Alvarez Torres Erick | D6: Alvarez | E6: Torres | F6: Erick | H6: Erick Alvarez Torres | J6: Erick Alvarez Torres
B7: Castro Vásquez Bernardo | D7: Castro | E7: Vásquez | F7: Bernardo | H7: Bernardo Castro Vásquez | J7: Bernardo Castro Vásquez
B8: Chávez González Elsa | D8: Chávez | E8: González | F8: Elsa | H8: Elsa Chávez González | J8: Elsa Chávez González
B9: Belmar Hormazábal Rodrigo | D9: Belmar | E9: Hormazábal | F9: Rodrigo | H9: Rodrigo Belmar Hormazábal | J9: Rodrigo Belmar Hormazábal
B10: Castro Córdova Silvia | D10: Castro | E10: Córdova | F10: Silvia | H10: Silvia Castro Córdova | J10: Silvia Castro Córdova
B11: Aranguiz Figueroa Emilio | D11: Aranguiz | E11: Figueroa | F11: Emilio | H11: Emilio Aranguiz Figueroa | J11: Emilio Aranguiz Figueroa
B12: Astudillo Pereira Verónica | D12: Astudillo | E12: Pereira | F12: Verónica | H12: Verónica Astudillo Pereira | J12: Verónica Astudillo Pereira

Sheet Contar Sumar SI
I1: Contar.Si | J1: Sumar.Si | K1: Promedio.si
B2: Vendedor | C2: Zona | D2: Enero | E2: Febrero | F2: Total | H2: Zona | I2: N° | J2: Total $ | K2: Promedio
B3: Chávez González Elsa | C3: Norte | D3: 2000000 | E3: 3761993 | F3: =SUM(D3:E3) -> 5761993 | H3: Norte | I3: =COUNTIF(Zona,H3) -> 7 | J3: =SUMIF(Zona,H3,TotZ) -> 68893043 | K3: =AVERAGEIF(Zona,H3,TotZ) -> 9841863.286
B4: Catalán Toro Armanda | C4: Centro | D4: 2826258 | E4: 5452833 | F4: =SUM(D4:E4) -> 8279091 | H4: Centro | I4: =COUNTIF(Zona,H4) -> 4 | J4: =SUMIF(Zona,H4,TotZ) -> 31737452 | K4: =AVERAGEIF(Zona,H4,TotZ) -> 7934363
B5: Contreras Márquez Laura | C5: Norte | D5: 7407818 | E5: 3157745 | F5: 10565563 | H5: Sur | I5: =COUNTIF(Zona,H5) -> 3 | J5: =SUMIF(Zona,H5,TotZ) -> 29854196 | K5: =AVERAGEIF(Zona,H5,TotZ) -> 9951398.667
B6: Acevedo Navarro José | C6: Norte | D6: 4358000 | E6: 8426000 | F6: 12784000
B7: Calderón Galaz Jose | C7: Sur | D7: 1130677 | E7: 5067890 | F7: 6198567
B8: Belmar Hormazábal Rodrigo | C8: Norte | D8: 6906087 | E8: 3885627 | F8: 10791714
B9: Blanco Vera Washington | C9: Centro | D9: 1990275 | E9: 1632192 | F9: 3622467
B10: Castro Córdova Silvia | C10: Norte | D10: 2345876 | E10: 5762571 | F10: 8108447
B11: Astudillo Pereira Verónica | C11: Sur | D11: 4297000 | E11: 10052000 | F11: 14349000
B12: Alarcón Casanova Sergio | C12: Centro | D12: 5000000 | E12: 4470000 | F12: 9470000
B13: Armijo Lizama Leonardo | C13: Norte | D13: 8731335 | E13: 2453000 | F13: 11184335
B14: Dinara Lopez | C14: Centro | D14: 5877136 | E14: 4488758 | F14: 10365894
B15: Elisa Mota | C15: Norte | D15: 1544000 | E15: 8152991 | F15: 9696991
B16: Alicia Perez | C16: Sur | D16: 1557269 | E16: 7749360 | F16: 9306629

Sheet Sumar SI Grafico
B2: Vendedor | C2: Zona | D2: Enero | E2: Febrero | F2: Total | H2: Zona | I2: N° | J2: Total $
B3: Chávez González Elsa | C3: Norte | D3: 4108792 | E3: 3761993 | F3: =SUM(D3:E3) -> 7870785 | H3: Norte
B4: Catalán Toro Armanda | C4: Sur | D4: 2826258 | E4: 5452833 | F4: =SUM(D4:E4) -> 8279091 | H4: Centro
B5: Contreras Márquez Laura | C5: Norte | D5: 7407818 | E5: 3157745 | F5: 10565563 | H5: Sur
B6: Acevedo Navarro José | C6: Norte | D6: 4358000 | E6: 8426000 | F6: 12784000
B7: Calderón Galaz Jose | C7: Sur | D7: 1130677 | E7: 5067890 | F7: 6198567
B8: Belmar Hormazábal Rodrigo | C8: Norte | D8: 6906087 | E8: 3885627 | F8: 10791714
B9: Blanco Vera Washington | C9: Centro | D9: 1990275 | E9: 1632192 | F9: 3622467
B10: Castro Córdova Silvia | C10: Norte | D10: 2345876 | E10: 5762571 | F10: 8108447
B11: Astudillo Pereira Verónica | C11: Sur | D11: 4297000 | E11: 10052000 | F11: 14349000
B12: Alarcón Casanova Sergio | C12: Centro | D12: 5000000 | E12: 4470000 | F12: 9470000
B13: Armijo Lizama Leonardo | C13: Norte | D13: 8731335 | E13: 2453000 | F13: 11184335
B14: Dinara Lopez | C14: Centro | D14: 5877136 | E14: 4488758 | F14: 10365894
B15: Elisa Mota | C15: Norte | D15: 1544000 | E15: 8152991 | F15: 9696991
B16: Alicia Perez | C16: Sur | D16: 1557269 | E16: 7749360 | F16: 9306629

Sheet Contar-Sumar Si Conjunto
B2: Vendedor | C2: Zona | D2: Agencia | E2: Enero | F2: Febrero | G2: Total | H2: Comisión 4% | I2: 1 | J2: Zona | K2: Agencia | L2: N° | M2: Total $ | N2: Promedio $ | O2: Total Comis $
B3: Chávez González Elsa | C3: Norte | D3: Arica | E3: 4108792 | F3: 3761993 | G3: =SUM(E3:F3) -> 7870785 | H3: =G3*4% -> 314831.4 | J3: Norte | K3: Antofagasta | L3: =COUNTIFS(C3:C16,J3,D3:D16,K3) -> 2 | M3: =SUMIFS(G3:G16,C3:C16,J3,D3:D16,K3) -> 22480991 | N3: =AVERAGEIFS(G3:G16,C3:C16,J3,D3:D16,K3) -> 11240495.5 | O3: =SUMIFS(H3:H16,C3:C16,J3,D3:D16,K3) -> 899239.64
B4: Catalán Toro Armanda | C4: Sur | D4: Temuco | E4: 2826258 | F4: 5452833 | G4: =SUM(E4:F4) -> 8279091 | H4: =G4*4% -> 331163.64
B5: Contreras Márquez Laura | C5: Norte | D5: Iquique | E5: 7407818 | F5: 3157745 | G5: 10565563 | H5: 422622.52 | I5: 2 | J5: Zona | K5: ENTRE | L5: N° | M5: Total $
B6: Acevedo Navarro José | C6: Norte | D6: Antofagasta | E6: 4358000 | F6: 8426000 | G6: 12784000 | H6: 511360 | J6: Norte | L6: =COUNTIFS(C3:C16,J6,G3:G16,">=" & K8,G3:G16,"<=" & K9) -> 4 | M6: =SUMIFS(G3:G16,C3:C16,J6,G3:G16,">=" &K8,G3:G16,"<=" & K9) -> 39162715
B7: Calderón Galaz Jose | C7: Sur | D7: Temuco | E7: 1130677 | F7: 5067890 | G7: 6198567 | H7: 247942.68
B8: Belmar Hormazábal Rodrigo | C8: Norte | D8: Iquique | E8: 6906087 | F8: 3885627 | G8: 10791714 | H8: 431668.56 | J8: Valor Uno >= | K8: 8000000
B9: Blanco Vera Washington | C9: Centro | D9: Santiago | E9: 1990275 | F9: 1632192 | G9: 3622467 | H9: 144898.68 | J9: Valor Dos <= | K9: 11000000
B10: Castro Córdova Silvia | C10: Norte | D10: Arica | E10: 2345876 | F10: 5762571 | G10: 8108447 | H10: 324337.88
B11: Astudillo Pereira Verónica | C11: Sur | D11: Temuco | E11: 4297000 | F11: 10052000 | G11: 14349000 | H11: 573960
B12: Alarcón Casanova Sergio | C12: Centro | D12: Santiago | E12: 5000000 | F12: 4470000 | G12: 9470000 | H12: 378800
B13: Armijo Lizama Leonardo | C13: Norte | D13: Arica | E13: 8731335 | F13: 2453000 | G13: 11184335 | H13: 447373.4
B14: Dinara Lopez | C14: Centro | D14: Santiago | E14: 5877136 | F14: 4488758 | G14: 10365894 | H14: 414635.76
B15: Elisa Mota | C15: Norte | D15: Antofagasta | E15: 1544000 | F15: 8152991 | G15: 9696991 | H15: 387879.64
B16: Alicia Perez | C16: Sur | D16: Valdivia | E16: 1557269 | F16: 7749360 | G16: 9306629 | H16: 372265.16

Sheet Funcion Logica SI
A2: 1 | B2: RUT | C2: NOMBRE | D2: PROMEDIO | E2: ESTADO | M2: TRUE
B3: 03.903.946-K | C3: Castro Córdova Silvia | D3: 5.5 | E3: =IF(D3>=4,"APROBADO","REPROBADO") -> APROBADO | G3: PRUEBA LOGICA
B4: 04.308.131-4 | C4: Calderón Galaz Jose | D4: 4 | E4: =IF(D4>=4,"APROBADO","REPROBADO") -> APROBADO
B5: 05.334.664-2 | C5: Catalán Toro Armanda | D5: 3 | E5: REPROBADO | M5: FALSE
B6: 05.512.105-2 | C6: Acevedo Navarro José | D6: 2 | E6: REPROBADO
B7: 05.660.775-7 | C7: Aranguiz Figueroa Carlos | D7: 5 | E7: APROBADO
F10: Sol. Por Defecto | G10: Control dos valores
A11: 2 | B11: RUT | C11: NOMBRE | D11: SECTOR | E11: RENTA | F11: BONO SECTOR | G11: BONO SECTOR II | H11: TOTAL $ | L11: SECTOR | M11: %
B12: 03.903.946-K | C12: Castro Córdova Silvia | D12: SUR | E12: 560000 | F12: =IF(D12="SUR",E12*$M$12%,E12*$M$13%) -> 61600 | G12: =IF(D12="SUR",E12*$M$12%,IF(D12="CENTRO",E12*$M$13%,0)) -> 61600 | H12: =G12+E12 -> 621600 | L12: SUR | M12: 11
B13: 04.308.131-4 | C13: Calderón Galaz Jose | D13: EEE | E13: 590000 | F13: =IF(D13="SUR",E13*$M$12%,E13*$M$13%) -> 50150 | G13: =IF(D13="SUR",E13*$M$12%,IF(D13="CENTRO",E13*$M$13%,0)) -> 0 | H13: =G13+E13 -> 590000 | L13: CENTRO | M13: 8.5
B14: 05.334.664-2 | C14: Catalán Toro Armanda | D14: SUR | E14: 560000 | F14: 61600 | G14: 61600 | H14: 621600
B15: 05.512.105-2 | C15: Acevedo Navarro José | D15: CENTRO | E15: 590000 | F15: 50150 | G15: 50150 | H15: 640150
B16: 05.660.775-7 | C16: Aranguiz Figueroa Carlos | D16: SUR | E16: 560000 | F16: 61600 | G16: 61600 | H16: 621600

Sheet SI Anidado
K1: Zona | L1: ADIC. %
K2: Norte | L2: 0.125
B3: Nombre Profesional | C3: Zona | D3: Enero | E3: Febrero | F3: Total $ | G3: Adicional $ | H3: Total Final $ | K3: Sur | L3: 0.134
B4: Chávez González Elsa | C4: Norte | D4: 1800000 | E4: 1761993 | F4: =SUM(D4:E4) -> 3561993 | G4: =_xlfn.IFS(C4="Norte",F4*$L$2,C4="Sur",F4*$L$3,C4="Centro",F4*$L$4,TRUE,0) -> 445249.125 | H4: =F4+G4 -> 4007242.125 | K4: Centro | L4: 0.1155
B5: Catalán Toro Armanda | C5: Sur | D5: 1450000 | E5: 1452833 | F5: =SUM(D5:E5) -> 2902833 | G5: =_xlfn.IFS(C5="Norte",F5*$L$2,C5="Sur",F5*$L$3,C5="Centro",F5*$L$4,TRUE,0) -> 388979.622 | H5: =F5+G5 -> 3291812.622
B6: Contreras Márquez Laura | C6: Norte | D6: 1407818 | E6: 1157745 | F6: 2565563 | G6: =_xlfn.IFS(C6="Norte",F6*$L$2,C6="Sur",F6*$L$3,C6="Centro",F6*$L$4,TRUE,0) -> 320695.375 | H6: 2886258.375
B7: Acevedo Navarro José | C7: Sur | D7: 1358328 | E7: 1426105 | F7: 2784433 | G7: =_xlfn.IFS(C7="Norte",F7*$L$2,C7="Sur",F7*$L$3,C7="Centro",F7*$L$4,TRUE,0) -> 373114.022 | H7: 3157547.022
B8: Calderón Galaz Jose | C8: Sur | D8: 1130123 | E8: 1067634 | F8: 2197757 | G8: =_xlfn.IFS(C8="Norte",F8*$L$2,C8="Sur",F8*$L$3,C8="Centro",F8*$L$4,TRUE,0) -> 294499.438 | H8: 2492256.438
B9: Belmar Hormazábal Rodrigo | C9: Poniente | D9: 1497557 | E9: 1052172 | F9: 2549729 | G9: =_xlfn.IFS(C9="Norte",F9*$L$2,C9="Sur",F9*$L$3,C9="Centro",F9*$L$4,TRUE,0) -> 0 | H9: 2549729
B10: Blanco Vera Washington | C10: Centro | D10: 1195385 | E10: 1470321 | F10: 2665706 | G10: =_xlfn.IFS(C10="Norte",F10*$L$2,C10="Sur",F10*$L$3,C10="Centro",F10*$L$4,TRUE,0) -> 307889.043 | H10: 2973595.043
B11: Castro Córdova Silvia | C11: Norte | D11: 1731335 | E11: 1124654 | F11: 2855989 | G11: =_xlfn.IFS(C11="Norte",F11*$L$2,C11="Sur",F11*$L$3,C11="Centro",F11*$L$4,TRUE,0) -> 356998.625 | H11: 3212987.625
B12: Astudillo Pereira Verónica | C12: Sur | D12: 1877136 | E12: 1488758 | F12: 3365894 | G12: =_xlfn.IFS(C12="Norte",F12*$L$2,C12="Sur",F12*$L$3,C12="Centro",F12*$L$4,TRUE,0) -> 451029.796 | H12: 3816923.796
B13: Alarcón Casanova Sergio | C13: Centro | D13: 1544048 | E13: 1152991 | F13: 2697039 | G13: =_xlfn.IFS(C13="Norte",F13*$L$2,C13="Sur",F13*$L$3,C13="Centro",F13*$L$4,TRUE,0) -> 311508.0045 | H13: 3008547.004
B14: Armijo Lizama Leonardo | C14: Norte | D14: 1557269 | E14: 1749360 | F14: 3306629 | G14: =_xlfn.IFS(C14="Norte",F14*$L$2,C14="Sur",F14*$L$3,C14="Centro",F14*$L$4,TRUE,0) -> 413328.625 | H14: 3719957.625
B15: Dinara Lopez | C15: Centro | D15: 1877136 | E15: 2488758 | F15: 4365894 | G15: =_xlfn.IFS(C15="Norte",F15*$L$2,C15="Sur",F15*$L$3,C15="Centro",F15*$L$4,TRUE,0) -> 504260.757 | H15: 4870154.757
B16: Elisa Mota | C16: Norte | D16: 1544048 | E16: 1152991 | F16: 2697039 | G16: =_xlfn.IFS(C16="Norte",F16*$L$2,C16="Sur",F16*$L$3,C16="Centro",F16*$L$4,TRUE,0) -> 337129.875 | H16: 3034168.875
B17: Alicia Perez | C17: Sur | D17: 1557269 | E17: 1749360 | F17: 3306629 | G17: =_xlfn.IFS(C17="Norte",F17*$L$2,C17="Sur",F17*$L$3,C17="Centro",F17*$L$4,TRUE,0) -> 443088.286 | H17: 3749717.286

Sheet Si Anidaddo Ad. Nombre
G2: Ad. Nombre
B3: Nombre Profesional | C3: Zona | D3: Enero | E3: Febrero | F3: Total $ | G3: Adicional $ | H3: Total Final $
B4: Chávez González Elsa | C4: Norte | D4: 1800000 | E4: 1761993 | F4: =SUM(D4:E4) -> 3561993 | G4: =_xlfn.IFS(C4="Norte",F4*Nor,C4="Centro",F4*Cen,C4="Sur",F4*Su,TRUE,0) -> 445249.125 | H4: =F4+G4 -> 4007242.125
B5: Catalán Toro Armanda | C5: Sur | D5: 1450000 | E5: 1452833 | F5: =SUM(D5:E5) -> 2902833 | G5: =_xlfn.IFS(C5="Norte",F5*Nor,C5="Centro",F5*Cen,C5="Sur",F5*Su,TRUE,0) -> 388979.622 | H5: =F5+G5 -> 3291812.622
B6: Contreras Márquez Laura | C6: Norte | D6: 1407818 | E6: 1157745 | F6: 2565563 | G6: =_xlfn.IFS(C6="Norte",F6*Nor,C6="Centro",F6*Cen,C6="Sur",F6*Su,TRUE,0) -> 320695.375 | H6: 2886258.375
B7: Acevedo Navarro José | C7: Sur | D7: 1358328 | E7: 1426105 | F7: 2784433 | G7: =_xlfn.IFS(C7="Norte",F7*Nor,C7="Centro",F7*Cen,C7="Sur",F7*Su,TRUE,0) -> 373114.022 | H7: 3157547.022
B8: Calderón Galaz Jose | C8: Sur | D8: 1130123 | E8: 1067634 | F8: 2197757 | G8: =_xlfn.IFS(C8="Norte",F8*Nor,C8="Centro",F8*Cen,C8="Sur",F8*Su,TRUE,0) -> 294499.438 | H8: 2492256.438
B9: Belmar Hormazábal Rodrigo | C9: Norte | D9: 1497557 | E9: 1052172 | F9: 2549729 | G9: =_xlfn.IFS(C9="Norte",F9*Nor,C9="Centro",F9*Cen,C9="Sur",F9*Su,TRUE,0) -> 318716.125 | H9: 2868445.125
B10: Blanco Vera Washington | C10: Centro | D10: 1195385 | E10: 1470321 | F10: 2665706 | G10: =_xlfn.IFS(C10="Norte",F10*Nor,C10="Centro",F10*Cen,C10="Sur",F10*Su,TRUE,0) -> 307889.043 | H10: 2973595.043
B11: Castro Córdova Silvia | C11: Norte | D11: 1731335 | E11: 1124654 | F11: 2855989 | G11: =_xlfn.IFS(C11="Norte",F11*Nor,C11="Centro",F11*Cen,C11="Sur",F11*Su,TRUE,0) -> 356998.625 | H11: 3212987.625
B12: Astudillo Pereira Verónica | C12: Sur | D12: 1877136 | E12: 1488758 | F12: 3365894 | G12: =_xlfn.IFS(C12="Norte",F12*Nor,C12="Centro",F12*Cen,C12="Sur",F12*Su,TRUE,0) -> 451029.796 | H12: 3816923.796
B13: Alarcón Casanova Sergio | C13: Centro | D13: 1544048 | E13: 1152991 | F13: 2697039 | G13: =_xlfn.IFS(C13="Norte",F13*Nor,C13="Centro",F13*Cen,C13="Sur",F13*Su,TRUE,0) -> 311508.0045 | H13: 3008547.004
B14: Armijo Lizama Leonardo | C14: Norte | D14: 1557269 | E14: 1749360 | F14: 3306629 | G14: =_xlfn.IFS(C14="Norte",F14*Nor,C14="Centro",F14*Cen,C14="Sur",F14*Su,TRUE,0) -> 413328.625 | H14: 3719957.625
B15: Dinara Lopez | C15: Centro | D15: 1877136 | E15: 2488758 | F15: 4365894 | G15: =_xlfn.IFS(C15="Norte",F15*Nor,C15="Centro",F15*Cen,C15="Sur",F15*Su,TRUE,0) -> 504260.757 | H15: 4870154.757
B16: Elisa Mota | C16: Norte | D16: 1544048 | E16: 1152991 | F16: 2697039 | G16: =_xlfn.IFS(C16="Norte",F16*Nor,C16="Centro",F16*Cen,C16="Sur",F16*Su,TRUE,0) -> 337129.875 | H16: 3034168.875
B17: Alicia Perez | C17: Sur | D17: 1557269 | E17: 1749360 | F17: 3306629 | G17: =_xlfn.IFS(C17="Norte",F17*Nor,C17="Centro",F17*Cen,C17="Sur",F17*Su,TRUE,0) -> 443088.286 | H17: 3749717.286

Sheet Parametros
B2: Zona | C2: ADIC. %
B3: Norte | C3: 0.125
B4: Sur | C4: 0.134
B5: Centro | C5: 0.1155

Sheet Logica Option
A1: 4
B2: NOMBRE | C2: TRANSACCION | D2: MARGEN % | E2: TOTAL
B3: Castro Córdova Silvia | C3: 457000 | D3: =_xlfn.IFS($A$1=1,C3*5%,$A$1=2,C3*7%,$A$1=3,C3*11%,$A$1=4,0,TRUE,0) -> 0 | E3: =C3+D3 -> 457000
B4: Calderón Galaz Jose | C4: 582400 | D4: =_xlfn.IFS($A$1=1,C4*5%,$A$1=2,C4*7%,$A$1=3,C4*11%,$A$1=4,0,TRUE,0) -> 0 | E4: =C4+D4 -> 582400
B5: Chávez González Elsa | C5: 566000 | D5: =_xlfn.IFS($A$1=1,C5*5%,$A$1=2,C5*7%,$A$1=3,C5*11%,$A$1=4,0,TRUE,0) -> 0 | E5: 566000
B6: Aranguiz Figueroa Emilio | C6: 550000 | D6: =_xlfn.IFS($A$1=1,C6*5%,$A$1=2,C6*7%,$A$1=3,C6*11%,$A$1=4,0,TRUE,0) -> 0 | E6: 550000
B7: Armijo Lizama Leonardo | C7: 556000 | D7: =_xlfn.IFS($A$1=1,C7*5%,$A$1=2,C7*7%,$A$1=3,C7*11%,$A$1=4,0,TRUE,0) -> 0 | E7: 556000
B8: Azócar Riffo Herminda | C8: 640000 | D8: =_xlfn.IFS($A$1=1,C8*5%,$A$1=2,C8*7%,$A$1=3,C8*11%,$A$1=4,0,TRUE,0) -> 0 | E8: 640000
B9: Blanco Vera Washington | C9: 528000 | D9: =_xlfn.IFS($A$1=1,C9*5%,$A$1=2,C9*7%,$A$1=3,C9*11%,$A$1=4,0,TRUE,0) -> 0 | E9: 528000
B10: Contreras Márquez Laura | C10: 457000 | D10: =_xlfn.IFS($A$1=1,C10*5%,$A$1=2,C10*7%,$A$1=3,C10*11%,$A$1=4,0,TRUE,0) -> 0 | E10: 457000
B11: Belmar Hormazábal Rodrigo | C11: 528000 | D11: =_xlfn.IFS($A$1=1,C11*5%,$A$1=2,C11*7%,$A$1=3,C11*11%,$A$1=4,0,TRUE,0) -> 0 | E11: 528000
B12: Bacián Lavín Carlos | C12: 641000 | D12: =_xlfn.IFS($A$1=1,C12*5%,$A$1=2,C12*7%,$A$1=3,C12*11%,$A$1=4,0,TRUE,0) -> 0 | E12: 641000
B13: Aguilera Cabrera Ivan | C13: 510000 | D13: =_xlfn.IFS($A$1=1,C13*5%,$A$1=2,C13*7%,$A$1=3,C13*11%,$A$1=4,0,TRUE,0) -> 0 | E13: 510000
B14: Castro Vásquez Bernardo | C14: 700000 | D14: =_xlfn.IFS($A$1=1,C14*5%,$A$1=2,C14*7%,$A$1=3,C14*11%,$A$1=4,0,TRUE,0) -> 0 | E14: 700000
B15: Astudillo Pereira Verónica | C15: 557000 | D15: =_xlfn.IFS($A$1=1,C15*5%,$A$1=2,C15*7%,$A$1=3,C15*11%,$A$1=4,0,TRUE,0) -> 0 | E15: 557000
B16: Alvarez Torres Erick | C16: 574000 | D16: =_xlfn.IFS($A$1=1,C16*5%,$A$1=2,C16*7%,$A$1=3,C16*11%,$A$1=4,0,TRUE,0) -> 0 | E16: 574000

Sheet Check
G2: Bono de 50.000 | J2: Valores Lógicos
B3: APLICA | C3: RUT | D3: NOMBRE | E3: CARGO | F3: RENTA | G3: BONO GENERAL | H3: TOTAL $
C4: 03.903.946-K | D4: Castro Córdova Silvia | E4: VENDEDOR | F4: 457000 | G4: =IF(J4,50000,0) -> 50000 | H4: =F4+G4 -> 507000 | J4: TRUE
C5: 04.308.131-4 | D5: Calderón Galaz Jose | E5: SECRETARIA | F5: 582400 | G5: =IF(J5,50000,0) -> 50000 | H5: =F5+G5 -> 632400 | J5: TRUE
C6: 06.565.470-9 | D6: Bacián Lavín Carlos | E6: ADMINISTRATIVO | F6: 641000 | G6: 0 | H6: 641000 | J6: FALSE
C7: 06.633.876-2 | D7: Astudillo Pereira Verónica | E7: VENDEDOR | F7: 557000 | G7: 0 | H7: 557000 | J7: FALSE
C8: 06.843.720-2 | D8: Alvarez Torres Erick | E8: ADMINISTRATIVO | F8: 574000 | G8: 50000 | H8: 624000 | J8: TRUE

Sheet Check 2
A1: TRUE
E2: 67000
C4: RUT | D4: NOMBRE | E4: CARGO | F4: RENTA | G4: BONO GENERAL | H4: TOTAL $
C5: 03.903.946-K | D5: Castro Córdova Silvia | E5: VENDEDOR | F5: 457000 | G5: =IF($A$1,$E$2,0) -> 67000 | H5: =F5+G5 -> 524000
C6: 04.308.131-4 | D6: Calderón Galaz Jose | E6: SECRETARIA | F6: 582400 | G6: =IF($A$1,$E$2,0) -> 67000 | H6: =F6+G6 -> 649400
C7: 05.057.894-1 | D7: Chávez González Elsa | E7: SECRETARIA | F7: 566000 | G7: 67000 | H7: 633000
C8: 06.388.776-5 | D8: Contreras Márquez Laura | E8: ADMINISTRATIVO | F8: 457000 | G8: 67000 | H8: 524000
C9: 06.434.788-8 | D9: Belmar Hormazábal Rodrigo | E9: SECRETARIA | F9: 528000 | G9: 67000 | H9: 595000
C10: 06.565.470-9 | D10: Bacián Lavín Carlos | E10: ADMINISTRATIVO | F10: 641000 | G10: 67000 | H10: 708000
C11: 06.597.566-1 | D11: Aguilera Cabrera Ivan | E11: ADMINISTRATIVO | F11: 510000 | G11: 67000 | H11: 577000
C12: 06.633.613-1 | D12: Castro Vásquez Bernardo | E12: VENDEDOR | F12: 700000 | G12: 67000 | H12: 767000
C13: 06.633.876-2 | D13: Astudillo Pereira Verónica | E13: VENDEDOR | F13: 557000 | G13: 67000 | H13: 624000
C14: 06.843.720-2 | D14: Alvarez Torres Erick | E14: ADMINISTRATIVO | F14: 574000 | G14: 67000 | H14: 641000

Sheet Formato Y
B2: Estado Civil | C2: Edad | E2: Si es casado y mayor 40 años == > 40.000
B3: Casado | C3: 55
E4: =AND(B3="Casado",C3>=40) -> TRUE
E5: =IF(AND(B3="Casado",C3>=40),40000,0) -> 40000

Sheet Funcion Logica Y
B2: Vendedor | C2: Zona | D2: Agencia | E2: Enero | F2: Febrero | G2: Total | H2: Comisión | J2: Bono Comisión
B3: Chávez González Elsa | C3: Norte | D3: Arica | E3: 4108792 | F3: 3761993 | G3: =SUM(E3:F3) -> 7870785 | J3: Zona | K3: Total Ventas Mayor a
B4: Catalán Toro Armanda | C4: Sur | D4: Temuco | E4: 2826258 | F4: 5452833 | G4: 8279091 | J4: Norte | K4: 7000000 | L4: 0.035
B5: Contreras Márquez Laura | C5: Norte | D5: Iquique | E5: 7407818 | F5: 3157745 | G5: 10565563 | J5: Sur | K5: 10000000 | L5: 0.0365
B6: Acevedo Navarro José | C6: Norte | D6: Antofagasta | E6: 4358000 | F6: 8426000 | G6: 12784000
B7: Calderón Galaz Jose | C7: Sur | D7: Temuco | E7: 1130677 | F7: 5067890 | G7: 6198567
B8: Belmar Hormazábal Rodrigo | C8: Norte | D8: Iquique | E8: 6906087 | F8: 3885627 | G8: 10791714
B9: Blanco Vera Washington | C9: Centro | D9: Santiago | E9: 1990275 | F9: 1632192 | G9: 3622467
B10: Castro Córdova Silvia | C10: Norte | D10: Arica | E10: 2345876 | F10: 5762571 | G10: 8108447
B11: Astudillo Pereira Verónica | C11: Sur | D11: Temuco | E11: 4297000 | F11: 10052000 | G11: 14349000
B12: Alarcón Casanova Sergio | C12: Centro | D12: Santigo | E12: 5000000 | F12: 4470000 | G12: 9470000
B13: Armijo Lizama Leonardo | C13: Norte | D13: Arica | E13: 8731335 | F13: 2453000 | G13: 11184335
B14: Dinara Lopez | C14: Centro | D14: Santiago | E14: 5877136 | F14: 4488758 | G14: 10365894
B15: Elisa Mota | C15: Norte | D15: Antofagasta | E15: 1544000 | F15: 8152991 | G15: 9696991
B16: Alicia Perez | C16: Sur | D16: Valdivia | E16: 1557269 | F16: 7749360 | G16: 9306629

Sheet Ejercicio Y Check
B2: Vendedor | C2: Zona | D2: Enero | E2: Febrero | F2: Total | G2: Comisión Norte | H2: Comisión Sur | J2: Bono Comisión
B3: Chávez González Elsa | C3: Norte | D3: 4108000 | E3: 3761993 | F3: =SUM(D3:E3) -> 7869993 | J3: Zona | K3: Ventas Mayor = a
B4: Catalán Toro Armanda | C4: Sur | D4: 2826258 | E4: 5452833 | F4: 8279091 | K4: 7000000 | L4: 0.035
B5: Contreras Márquez Laura | C5: Norte | D5: 7407818 | E5: 3157745 | F5: 10565563 | K5: 8000000 | L5: 0.0365
B6: Acevedo Navarro José | C6: Norte | D6: 4358000 | E6: 8426000 | F6: 12784000
B7: Calderón Galaz Jose | C7: Sur | D7: 1130677 | E7: 5067890 | F7: 6198567
B8: Belmar Hormazábal Rodrigo | C8: Norte | D8: 6906087 | E8: 3885627 | F8: 10791714
B9: Blanco Vera Washington | C9: Centro | D9: 1990275 | E9: 1632192 | F9: 3622467
B10: Castro Córdova Silvia | C10: Norte | D10: 2345876 | E10: 5762571 | F10: 8108447
B11: Astudillo Pereira Verónica | C11: Sur | D11: 4297000 | E11: 10052000 | F11: 14349000
B12: Alarcón Casanova Sergio | C12: Centro | D12: 5000000 | E12: 4470000 | F12: 9470000
B13: Armijo Lizama Leonardo | C13: Norte | D13: 8731335 | E13: 2453000 | F13: 11184335
B14: Dinara Lopez | C14: Centro | D14: 5877136 | E14: 4488758 | F14: 10365894
B15: Elisa Mota | C15: Norte | D15: 1544000 | E15: 8152991 | F15: 9696991
B16: Alicia Perez | C16: Sur | D16: 1557269 | E16: 7749360 | F16: 9306629

Sheet Funcion Logica O
B2: ID empleado | C2: Nombre | D2: Zona | E2: Venta | F2: Comisión | H2: Comisiones
B3: 1968 | C3: Jeronimo Burgos | D3: Norte | E3: 3200000 | H3: Zona | I3: % | J3: Adicional
B4: 1674 | C4: Estefania Villegas | D4: Sur | E4: 3200000 | H4: Norte o Sur | I4: 0.095 | J4: 0.02
B5: 1516 | C5: Guillermo Fernandez | D5: Norte | E5: 4500000
B6: 1330 | C6: Eliana Ramirez | D6: Sur | E6: 3200000
B7: 1949 | C7: Paula Palacio | D7: Sur | E7: 4100000
B8: 1329 | C8: Julieth Osorio | D8: Sur | E8: 3500000
B9: 1572 | C9: Lina Villamizar | D9: Oriente | E9: 3600000
B10: 1300 | C10: Carlos Gomez | D10: Norte | E10: 2300000
B11: 1303 | C11: Dinara Lopez | D11: Poniente | E11: 5600000
B12: 1302 | C12: Elisa Mota | D12: Norte | E12: 3800000
B13: 1334 | C13: Alicia Perez | D13: Poniente | E13: 1350000
B14: 1975 | C14: Carlos Posada | D14: Oriente | E14: 3200000
B15: 1759 | C15: Mauricio Arango | D15: Norte | E15: 4700000
B16: 1427 | C16: David Jaramillo | D16: Norte | E16: 3400000

Sheet Funcion Logica Y O
B2: Vendedor | C2: Zona | D2: Agencia | E2: Enero | F2: Febrero | G2: Total | H2: Comisión | J2: Bono Comisión
B3: Chávez González Elsa | C3: Norte | D3: Arica | E3: 4108792 | F3: 3761993 | G3: =SUM(E3:F3) -> 7870785 | J3: Zona | K3: Agencia
B4: Catalán Toro Armanda | C4: Sur | D4: Temuco | E4: 2826258 | F4: 5452833 | G4: 8279091 | J4: Norte | K4: Arica o Iquique | L4: 0.035
B5: Contreras Márquez Laura | C5: Norte | D5: Iquique | E5: 7407818 | F5: 3157745 | G5: 10565563 | J5: Sur | K5: Temuco | L5: 0.0365
B6: Acevedo Navarro José | C6: Norte | D6: Antofagasta | E6: 4358000 | F6: 8426000 | G6: 12784000
B7: Calderón Galaz Jose | C7: Sur | D7: Temuco | E7: 1130677 | F7: 5067890 | G7: 6198567
B8: Belmar Hormazábal Rodrigo | C8: Norte | D8: Iquique | E8: 6906087 | F8: 3885627 | G8: 10791714
B9: Blanco Vera Washington | C9: Centro | D9: Santiago | E9: 1990275 | F9: 1632192 | G9: 3622467
B10: Castro Córdova Silvia | C10: Norte | D10: Arica | E10: 2345876 | F10: 5762571 | G10: 8108447
B11: Astudillo Pereira Verónica | C11: Sur | D11: Temuco | E11: 4297000 | F11: 10052000 | G11: 14349000
B12: Alarcón Casanova Sergio | C12: Centro | D12: Santiago | E12: 5000000 | F12: 4470000 | G12: 9470000
B13: Armijo Lizama Leonardo | C13: Norte | D13: Arica | E13: 8731335 | F13: 2453000 | G13: 11184335
B14: Dinara Lopez | C14: Centro | D14: Santiago | E14: 5877136 | F14: 4488758 | G14: 10365894
B15: Elisa Mota | C15: Norte | D15: Antofagasta | E15: 1544000 | F15: 8152991 | G15: 9696991
B16: Alicia Perez | C16: Sur | D16: Valdivia | E16: 1557269 | F16: 7749360 | G16: 9306629
